[Event "44th Chess Olympiad Open 2022"]
[Site "Chennai"]
[Date "2022.07.31"]
[Round "3.16"]
[White "Gupta, Abhijeet"]
[Black "Kjartansson, Gudmundur"]
[Result "1-0"]
[WhiteElo "2627"]
[BlackElo "2448"]
[Annotator "RC"]
[PlyCount "71"]
[EventDate "2022.??.??"]
[TimeControl "60"]

1. d4 {[%emt 0:00:29]} d5 {[%emt 0:00:14]} 2. Nf3 {[%emt 0:00:29]} e6 {[%emt 0:
00:00]} 3. Bf4 {[%emt 0:00:15]} Bd6 {[%emt 0:02:54]} 4. e3 {[%emt 0:01:16]}
Bxf4 {[%emt 0:02:48]} 5. exf4 {[%emt 0:02:11]} Nf6 {[%emt 0:04:00]} 6. Nbd2 {
[%emt 0:00:25]} O-O {[%emt 0:00:47]} 7. Bd3 {[%emt 0:00:21]} c5 {[%emt 0:01:07]
} 8. dxc5 {[%emt 0:00:16]} Qa5 {[%emt 0:02:34]} 9. O-O {[%emt 0:01:29]} Qxc5 {
[%emt 0:00:17]} 10. a3 {[%emt 0:02:32]} Qc7 {[%emt 0:01:40]} 11. g3 {[%emt 0:
00:00]} Nbd7 {[%emt 0:01:59]} 12. Re1 {[%emt 0:01:34]} Nc5 {[%emt 0:02:33]} 13.
Bf1 {[%emt 0:00:19]} b6 {[%emt 0:03:10]} 14. Nd4 {[%emt 0:03:57]} Ba6 {[%emt 0:
00:00]} 15. Bg2 {[%emt 0:00:21]} Rac8 {[%emt 0:03:13]} 16. N2f3 {[%emt 0:02:36]
} Rfe8 {[%emt 0:11:28]} 17. Ne5 {[%emt 0:07:09]} Nfe4 {[%emt 0:01:48]} 18. Re3
{[%emt 0:09:14]} f6 {[%emt 0:10:37]} 19. Nd3 {[%emt 0:00:38]} Kh8 {[%emt 0:00:
00]} 20. Nxc5 {[%emt 0:13:21]} Qxc5 {[%emt 0:10:26]} 21. c3 {[%emt 0:02:35]} e5
{[%emt 0:16:57]} 22. fxe5 {[%emt 0:01:17]} fxe5 {[%emt 0:03:09]} 23. Bxe4 {
[%emt 0:00:31]} dxe4 {[%emt 0:00:41]} 24. Nb3 {[%emt 0:00:24]} Qc6 {[%emt 0:00:
00]} 25. Nd2 {[%emt 0:00:58]} Bd3 {[%emt 0:00:48]} 26. Qe1 {[%emt 0:06:29]} Qb5
{[%emt 0:01:02]} 27. b4 {[%emt 0:00:06]} Qd5 {[%emt 0:05:44]} 28. Rd1 {[%emt 0:
00:00]} Bc2 {[%emt 0:02:44]} 29. Rc1 {[%emt 0:00:42]} Qa2 {[%emt 0:00:24]} 30.
c4 {[%emt 0:01:04]} Bd3 {[%emt 0:00:46]} 31. Nxe4 {[%emt 0:06:28]} Bxe4 {
[%emt 0:00:06]} 32. Rxe4 {[%emt 0:00:04]} Qxa3 {[%emt 0:00:32]} 33. Ra1 {
[%emt 0:00:41]} Qb3 {[%emt 0:01:02]} 34. Rxa7 {[%emt 0:01:15]} Rxc4 {[%emt 0:
00:00]} 35. Rxe5 {[%emt 0:00:50]} Rf8 {[%emt 0:00:36]} 36. Ra8 {[%emt 0:09:52]}
1-0

[Event "44th Chess Olympiad Open 2022"]
[Site "Chennai"]
[Date "2022.07.31"]
[Round "3.16"]
[White "Ganguly, Surya Shekhar"]
[Black "Gretarsson, Hjorvar Steinn"]
[Result "1/2-1/2"]
[WhiteElo "2608"]
[BlackElo "2563"]
[Annotator "RC"]
[PlyCount "108"]
[EventDate "2022.??.??"]
[TimeControl "60"]

1. e4 {[%emt 0:00:13]} c5 {[%emt 0:00:09]} 2. Nf3 {[%emt 0:00:15]} d6 {[%emt 0:
00:00]} 3. d4 {[%emt 0:00:11]} cxd4 {[%emt 0:00:06]} 4. Nxd4 {[%emt 0:00:08]}
Nf6 {[%emt 0:00:06]} 5. Nc3 {[%emt 0:00:08]} a6 {[%emt 0:00:06]} 6. Qd3 {
[%emt 0:00:26]} Nbd7 {[%emt 0:10:41]} 7. Be2 {[%emt 0:00:23]} e5 {[%emt 0:00:
00]} 8. Nf5 {[%emt 0:09:19]} Nc5 {[%emt 0:03:42]} 9. Qf3 {[%emt 0:00:17]} Bxf5
{[%emt 0:09:44]} 10. Qxf5 {[%emt 0:00:44]} Ne6 {[%emt 0:03:25]} 11. Bd3 {
[%emt 0:13:19]} Rc8 {[%emt 0:06:59]} 12. O-O {[%emt 0:01:28]} g6 {[%emt 0:00:
00]} 13. Qh3 {[%emt 0:02:12]} Bg7 {[%emt 0:09:52]} 14. Rd1 {[%emt 0:07:00]} O-O
{[%emt 0:01:35]} 15. Be3 {[%emt 0:01:14]} h5 {[%emt 0:04:23]} 16. f3 {[%emt 0:
00:00]} Qc7 {[%emt 0:09:21]} 17. a4 {[%emt 0:01:18]} Nf4 {[%emt 0:08:12]} 18.
Qh4 {[%emt 0:10:03]} d5 {[%emt 0:00:50]} 19. Bxf4 {[%emt 0:02:12]} exf4 {
[%emt 0:02:33]} 20. Nxd5 {[%emt 0:00:08]} Nxd5 {[%emt 0:00:12]} 21. exd5 {
[%emt 0:00:04]} Bxb2 {[%emt 0:00:49]} 22. Rab1 {[%emt 0:00:07]} Bc3 {[%emt 0:
00:00]} 23. Kh1 {[%emt 0:04:34]} Rfd8 {[%emt 0:01:57]} 24. Bf1 {[%emt 0:04:11]}
Rd7 {[%emt 0:02:06]} 25. Rd3 {[%emt 0:04:06]} Qe5 {[%emt 0:02:29]} 26. Rbd1 {
[%emt 0:02:22]} Rd6 {[%emt 0:01:27]} 27. Qf2 {[%emt 0:00:51]} b6 {[%emt 0:00:
00]} 28. Rb1 {[%emt 0:01:24]} Rc5 {[%emt 0:01:57]} 29. h3 {[%emt 0:10:33]} a5 {
[%emt 0:02:48]} 30. Kh2 {[%emt 0:06:55]} Bb4 {[%emt 0:01:13]} 31. Rbd1 {
[%emt 0:03:37]} Bc3 {[%emt 0:00:32]} 32. Rb1 {[%emt 0:02:41]} Bb4 {[%emt 0:00:
00]} 33. Rbd1 {[%emt 0:00:02]} Rc4 {[%emt 0:01:00]} 34. Rd4 {[%emt 0:00:49]}
Be1 {[%emt 0:01:35]} 35. Qe2 {[%emt 0:04:51]} Bg3+ {[%emt 0:00:13]} 36. Kg1 {
[%emt 0:00:02]} Qxe2 {[%emt 0:00:25]} 37. Bxe2 {[%emt 0:00:02]} Rxc2 {[%emt 0:
00:00]} 38. Kf1 {[%emt 0:00:37]} Kg7 {[%emt 0:00:49]} 39. Rc4 {[%emt 0:01:51]}
Rxc4 {[%emt 0:01:10]} 40. Bxc4 {[%emt 0:00:02]} Kf6 {[%emt 0:00:28]} 41. Rd4 {
[%emt 0:36:55]} Kf5 {[%emt 0:31:24]} 42. Ke2 {[%emt 0:00:00]} g5 {[%emt 0:00:
00]} 43. Bb3 {[%emt 0:00:00]} g4 {[%emt 0:00:00]} 44. hxg4+ {[%emt 0:00:00]}
hxg4 {[%emt 0:00:00]} 45. Re4 {[%emt 0:00:00]} Rd8 {[%emt 0:00:00]} 46. Bc2 {
[%emt 0:00:00]} Kf6 {[%emt 0:00:00]} 47. Bb3 {[%emt 0:00:00]} Kf5 {[%emt 0:00:
00]} 48. Bc2 {[%emt 0:00:51]} gxf3+ {[%emt 0:00:00]} 49. Kxf3 {[%emt 0:00:00]}
Kg5 {[%emt 0:00:00]} 50. Bb3 {[%emt 0:00:00]} Bh2 {[%emt 0:00:00]} 51. Re5+ {
[%emt 0:00:00]} Kg6 {[%emt 0:00:00]} 52. Bc4 {[%emt 0:00:00]} Rc8 {[%emt 0:00:
00]} 53. Re4 {[%emt 0:00:00]} Rd8 {[%emt 0:02:13]} 54. Rd4 {[%emt 0:00:00]} Kf5
{[%emt 0:02:08]} 1/2-1/2

[Event "44th Chess Olympiad Open 2022"]
[Site "Chennai"]
[Date "2022.07.31"]
[Round "3.16"]
[White "Stefansson, Hannes"]
[Black "Sethuraman, S.P..."]
[Result "0-1"]
[WhiteElo "2541"]
[BlackElo "2623"]
[Annotator "RC"]
[PlyCount "71"]
[EventDate "2022.??.??"]
[TimeControl "60"]

1. d4 {[%emt 0:00:57]} e6 {[%emt 0:00:16]} 2. Nf3 {[%emt 0:03:17]} Nf6 {
[%emt 0:01:41]} 3. c4 {[%emt 0:01:04]} d5 {[%emt 0:00:07]} 4. g3 {[%emt 0:00:
00]} Be7 {[%emt 0:07:41]} 5. Bg2 {[%emt 0:01:26]} O-O {[%emt 0:00:07]} 6. O-O {
[%emt 0:01:18]} dxc4 {[%emt 0:00:04]} 7. Qc2 {[%emt 0:01:13]} b6 {[%emt 0:00:
00]} 8. Qxc4 {[%emt 0:13:11]} Bb7 {[%emt 0:01:23]} 9. Nc3 {[%emt 0:05:49]} c5 {
[%emt 0:07:16]} 10. Bg5 {[%emt 0:08:18]} Nbd7 {[%emt 0:01:10]} 11. Rad1 {
[%emt 0:02:37]} Nd5 {[%emt 0:19:18]} 12. Bxe7 {[%emt 0:03:35]} Qxe7 {[%emt 0:
00:00]} 13. Ne1 {[%emt 0:02:37]} Rac8 {[%emt 0:11:07]} 14. Qa4 {[%emt 0:13:03]}
Nxc3 {[%emt 0:08:17]} 15. bxc3 {[%emt 0:00:11]} Bxg2 {[%emt 0:00:10]} 16. Nxg2
{[%emt 0:01:21]} Nf6 {[%emt 0:00:07]} 17. Qa3 {[%emt 0:10:23]} Nd5 {[%emt 0:00:
00]} 18. e4 {[%emt 0:05:20]} cxd4 {[%emt 0:01:35]} 19. Qxe7 {[%emt 0:00:52]}
Nxe7 {[%emt 0:00:04]} 20. cxd4 {[%emt 0:00:05]} Rc2 {[%emt 0:01:57]} 21. Rc1 {
[%emt 0:07:32]} Rxa2 {[%emt 0:02:51]} 22. Rc7 {[%emt 0:00:13]} Nc8 {[%emt 0:00:
00]} 23. e5 {[%emt 0:04:43]} b5 {[%emt 0:00:14]} 24. Rb1 {[%emt 0:03:58]} Nb6 {
[%emt 0:06:25]} 25. Ne3 {[%emt 0:00:34]} Ra5 {[%emt 0:02:16]} 26. Rc5 {[%emt 0:
00:00]} Rd8 {[%emt 0:03:09]} 27. d5 {[%emt 0:02:03]} exd5 {[%emt 0:00:17]} 28.
Nf5 {[%emt 0:01:23]} a6 {[%emt 0:09:44]} 29. Rc7 {[%emt 0:00:43]} Ra4 {[%emt 0:
00:00]} 30. Rb7 {[%emt 0:00:14]} Nc4 {[%emt 0:02:48]} 31. Re1 {[%emt 0:00:36]}
Na5 {[%emt 0:01:55]} 32. Rb6 {[%emt 0:01:08]} g6 {[%emt 0:00:26]} 33. Nd6 {
[%emt 0:01:17]} Nc4 {[%emt 0:00:04]} 34. Rc6 {[%emt 0:00:28]} d4 {[%emt 0:00:
00]} 35. Nb7 {[%emt 0:00:37]} Re8 {[%emt 0:00:21]} 36. Nc5 {[%emt 0:00:00]} 0-1

[Event "44th Chess Olympiad Open 2022"]
[Site "Chennai"]
[Date "2022.07.31"]
[Round "3.16"]
[White "Gretarsson, Helgi Ass"]
[Black "Puranik, Abhimanyu"]
[Result "1/2-1/2"]
[WhiteElo "2472"]
[BlackElo "2612"]
[Annotator "RC"]
[PlyCount "150"]
[EventDate "2022.??.??"]
[TimeControl "60"]

1. d4 {[%emt 0:00:02]} Nf6 {[%emt 0:00:07]} 2. c4 {[%emt 0:00:05]} g6 {[%emt 0:
00:00]} 3. Nc3 {[%emt 0:00:05]} d5 {[%emt 0:00:06]} 4. Bf4 {[%emt 0:00:10]} Bg7
{[%emt 0:00:15]} 5. e3 {[%emt 0:00:07]} O-O {[%emt 0:00:20]} 6. Rc1 {[%emt 0:
00:00]} c5 {[%emt 0:05:07]} 7. dxc5 {[%emt 0:00:53]} Be6 {[%emt 0:00:40]} 8.
Nf3 {[%emt 0:00:00]} Nc6 {[%emt 0:00:36]} 9. Be2 {[%emt 0:00:00]} Qa5 {[%emt 0:
00:00]} 10. Ng5 {[%emt 0:16:26]} Rad8 {[%emt 0:03:45]} 11. Nxe6 {[%emt 0:06:54]
} fxe6 {[%emt 0:00:05]} 12. Qa4 {[%emt 0:00:08]} Qxc5 {[%emt 0:11:48]} 13. O-O
{[%emt 0:06:40]} d4 {[%emt 0:02:27]} 14. exd4 {[%emt 0:13:28]} Nxd4 {[%emt 0:
00:00]} 15. Be3 {[%emt 0:00:38]} a6 {[%emt 0:09:30]} 16. h3 {[%emt 0:09:48]}
Ne4 {[%emt 0:16:08]} 17. Bg4 {[%emt 0:08:18]} Nd6 {[%emt 0:06:45]} 18. Bxe6+ {
[%emt 0:04:09]} Kh8 {[%emt 0:00:01]} 19. Rfe1 {[%emt 0:13:36]} Qe5 {[%emt 0:00:
00]} 20. Bxd4 {[%emt 0:06:50]} Qxd4 {[%emt 0:00:11]} 21. Qc2 {[%emt 0:00:07]}
b5 {[%emt 0:04:15]} 22. Rcd1 {[%emt 0:02:27]} Qa7 {[%emt 0:00:17]} 23. cxb5 {
[%emt 0:02:32]} axb5 {[%emt 0:00:04]} 24. a3 {[%emt 0:00:06]} Qc5 {[%emt 0:00:
00]} 25. Rd5 {[%emt 0:00:49]} Qb6 {[%emt 0:00:09]} 26. Rd2 {[%emt 0:00:27]} Qa5
{[%emt 0:06:35]} 27. Rd3 {[%emt 0:02:53]} b4 {[%emt 0:02:27]} 28. Rd5 {[%emt 0:
00:00]} Qb6 {[%emt 0:00:13]} 29. Na4 {[%emt 0:00:13]} Qa7 {[%emt 0:02:18]} 30.
axb4 {[%emt 0:00:48]} Rb8 {[%emt 0:00:02]} 31. Nc5 {[%emt 0:01:37]} Rxb4 {
[%emt 0:00:07]} 32. Nd3 {[%emt 0:00:09]} Rbb8 {[%emt 0:02:54]} 33. b4 {[%emt 0:
00:00]} Bd4 {[%emt 0:01:58]} 34. Re2 {[%emt 0:01:32]} Rf6 {[%emt 0:00:33]} 35.
Ra5 {[%emt 0:01:11]} Qb6 {[%emt 0:00:34]} 36. Bg4 {[%emt 0:00:44]} Rbf8 {
[%emt 0:00:24]} 37. Qa2 {[%emt 0:00:39]} Nb5 {[%emt 0:00:25]} 38. Qc4 {[%emt 0:
00:00]} Nd6 {[%emt 0:05:16]} 39. Qa6 {[%emt 0:00:28]} Qc7 {[%emt 0:00:14]} 40.
Rd5 {[%emt 0:00:25]} Qc3 {[%emt 0:01:02]} 41. Rxe7 {[%emt 0:13:04]} Ne4 {
[%emt 0:20:12]} 42. Qb7 {[%emt 0:01:58]} Rxf2 {[%emt 0:01:49]} 43. Rxh7+ {
[%emt 0:09:45]} Kg8 {[%emt 0:00:01]} 44. Be6+ {[%emt 0:00:04]} R8f7 {[%emt 0:
00:00]} 45. Bxf7+ {[%emt 0:06:45]} Rxf7+ {[%emt 0:01:18]} 46. Kh2 {[%emt 0:00:
00]} Rxb7 {[%emt 0:00:38]} 47. Rxb7 {[%emt 0:00:01]} Bf6 {[%emt 0:05:32]} 48.
Rdd7 {[%emt 0:01:23]} Qc8 {[%emt 0:00:55]} 49. h4 {[%emt 0:01:16]} Bd4 {
[%emt 0:00:58]} 50. g3 {[%emt 0:00:40]} Nf6 {[%emt 0:00:24]} 51. Rdc7 {[%emt 0:
00:00]} Qe8 {[%emt 0:01:34]} 52. Nf4 {[%emt 0:00:52]} Nd5 {[%emt 0:01:03]} 53.
Rc2 {[%emt 0:00:34]} Ne3 {[%emt 0:01:50]} 54. Rcc7 {[%emt 0:00:32]} Be5 {
[%emt 0:00:46]} 55. Rd7 {[%emt 0:00:31]} Bxf4 {[%emt 0:01:29]} 56. gxf4 {
[%emt 0:00:02]} Nf5 {[%emt 0:00:31]} 57. Kg2 {[%emt 0:00:54]} Nxh4+ {[%emt 0:
00:00]} 58. Kf1 {[%emt 0:00:33]} Nf5 {[%emt 0:00:20]} 59. b5 {[%emt 0:00:12]}
Qc8 {[%emt 0:00:37]} 60. b6 {[%emt 0:00:46]} Qc1+ {[%emt 0:00:16]} 61. Ke2 {
[%emt 0:00:07]} Qc2+ {[%emt 0:00:28]} 62. Ke1 {[%emt 0:00:54]} Qe4+ {[%emt 0:
00:00]} 63. Kd2 {[%emt 0:00:01]} Qxf4+ {[%emt 0:00:17]} 64. Kc2 {[%emt 0:00:20]
} Nd4+ {[%emt 0:00:19]} 65. Kd1 {[%emt 0:00:44]} Qf3+ {[%emt 0:00:41]} 66. Kd2
{[%emt 0:00:08]} Qf2+ {[%emt 0:00:03]} 67. Kd3 {[%emt 0:00:13]} Nc6 {[%emt 0:
00:00]} 68. Rg7+ {[%emt 0:00:43]} Kf8 {[%emt 0:00:08]} 69. Rh7 {[%emt 0:00:21]}
Qd4+ {[%emt 0:00:41]} 70. Ke2 {[%emt 0:00:02]} Kg8 {[%emt 0:00:58]} 71. Rhd7 {
[%emt 0:00:38]} Qe5+ {[%emt 0:00:54]} 72. Kf1 {[%emt 0:00:22]} Qf5+ {[%emt 0:
00:00]} 73. Kg2 {[%emt 0:00:13]} Qg4+ {[%emt 0:00:44]} 74. Kf2 {[%emt 0:00:07]}
Qf5+ {[%emt 0:00:32]} 75. Kg2 {[%emt 0:00:03]} Qg4+ {[%emt 0:00:28]} 1/2-1/2

[Event "44th Chess Olympiad Open 2022"]
[Site "Chennai"]
[Date "2022.07.31"]
[Round "3.17"]
[White "Nguyen, Thai Dai Van"]
[Black "Hansen, Eric"]
[Result "1/2-1/2"]
[WhiteElo "2629"]
[BlackElo "2606"]
[Annotator "RC"]
[PlyCount "61"]
[EventDate "2022.??.??"]
[TimeControl "60"]

1. d4 {[%emt 0:00:05]} Nf6 {[%emt 0:01:05]} 2. c4 {[%emt 0:00:15]} e6 {[%emt 0:
00:00]} 3. Nc3 {[%emt 0:00:14]} Bb4 {[%emt 0:04:24]} 4. Nf3 {[%emt 0:00:31]}
O-O {[%emt 0:07:55]} 5. Bg5 {[%emt 0:00:12]} h6 {[%emt 0:05:07]} 6. Bh4 {
[%emt 0:00:12]} c5 {[%emt 0:01:33]} 7. Rc1 {[%emt 0:01:14]} cxd4 {[%emt 0:00:
00]} 8. Nxd4 {[%emt 0:00:09]} Nc6 {[%emt 0:12:38]} 9. e3 {[%emt 0:00:23]} d5 {
[%emt 0:05:53]} 10. cxd5 {[%emt 0:18:11]} Qxd5 {[%emt 0:05:14]} 11. Bxf6 {
[%emt 0:04:36]} gxf6 {[%emt 0:00:35]} 12. Nxc6 {[%emt 0:00:17]} Qxd1+ {[%emt 0:
00:00]} 13. Kxd1 {[%emt 0:00:14]} bxc6 {[%emt 0:00:05]} 14. Bd3 {[%emt 0:01:44]
} Rd8 {[%emt 0:07:54]} 15. Ke2 {[%emt 0:01:26]} Rb8 {[%emt 0:07:22]} 16. b3 {
[%emt 0:11:02]} f5 {[%emt 0:05:30]} 17. Na4 {[%emt 0:03:31]} Rd6 {[%emt 0:00:
00]} 18. Rhd1 {[%emt 0:03:30]} Kf8 {[%emt 0:02:01]} 19. h3 {[%emt 0:10:36]} Ke7
{[%emt 0:04:58]} 20. f4 {[%emt 0:16:24]} Bd7 {[%emt 0:03:45]} 21. Nc5 {[%emt 0:
00:00]} Rg8 {[%emt 0:02:50]} 22. Nxd7 {[%emt 0:00:16]} Rxd7 {[%emt 0:00:23]}
23. Kf2 {[%emt 0:01:27]} Rgd8 {[%emt 0:01:38]} 24. Be2 {[%emt 0:00:08]} Rxd1 {
[%emt 0:02:09]} 25. Rxd1 {[%emt 0:00:06]} Rxd1 {[%emt 0:00:06]} 26. Bxd1 {
[%emt 0:00:02]} Ba5 {[%emt 0:00:49]} 27. Bf3 {[%emt 0:00:07]} Kd6 {[%emt 0:00:
00]} 28. Ke2 {[%emt 0:00:21]} Bb4 {[%emt 0:00:37]} 29. Kd3 {[%emt 0:00:05]} Bc5
{[%emt 0:00:14]} 30. g4 {[%emt 0:00:13]} fxg4 {[%emt 0:00:23]} 31. Ke4 {
[%emt 0:00:05]} 1/2-1/2

[Event "44th Chess Olympiad Open 2022"]
[Site "Chennai"]
[Date "2022.07.31"]
[Round "3.17"]
[White "Michalik, Peter"]
[Black "Noritsyn, Nikolay"]
[Result "1/2-1/2"]
[WhiteElo "2559"]
[BlackElo "2482"]
[Annotator "RC"]
[PlyCount "109"]
[EventDate "2022.??.??"]
[TimeControl "60"]

1. d4 {[%emt 0:00:30]} e6 {[%emt 0:00:30]} 2. Nf3 {[%emt 0:00:30]} d5 {[%emt 0:
00:00]} 3. c4 {[%emt 0:00:30]} a6 {[%emt 0:00:30]} 4. Bg5 {[%emt 0:00:30]} Be7
{[%emt 0:00:30]} 5. Bxe7 {[%emt 0:00:30]} Nxe7 {[%emt 0:00:30]} 6. Nbd2 {
[%emt 0:00:30]} Nd7 {[%emt 0:00:30]} 7. Rc1 {[%emt 0:00:30]} O-O {[%emt 0:00:
00]} 8. g3 {[%emt 0:00:30]} b6 {[%emt 0:00:30]} 9. Bg2 {[%emt 0:00:30]} Bb7 {
[%emt 0:00:30]} 10. O-O {[%emt 0:00:30]} c5 {[%emt 0:00:30]} 11. cxd5 {[%emt 0:
00:00]} Bxd5 {[%emt 0:00:30]} 12. Nc4 {[%emt 0:00:30]} Rc8 {[%emt 0:00:30]} 13.
Ne3 {[%emt 0:00:30]} Bb7 {[%emt 0:00:30]} 14. Qd3 {[%emt 0:00:30]} cxd4 {
[%emt 0:00:30]} 15. Rxc8 {[%emt 0:00:30]} Qxc8 {[%emt 0:00:30]} 16. Qxd4 {
[%emt 0:00:30]} Rd8 {[%emt 0:00:30]} 17. Rd1 {[%emt 0:00:30]} Nc6 {[%emt 0:00:
00]} 18. Qc3 {[%emt 0:00:30]} Nf6 {[%emt 0:00:30]} 19. Rxd8+ {[%emt 0:00:30]}
Nxd8 {[%emt 0:00:30]} 20. Qxc8 {[%emt 0:00:30]} Bxc8 {[%emt 0:00:30]} 21. Nc4 {
[%emt 0:00:30]} b5 {[%emt 0:00:30]} 22. Nd6 {[%emt 0:00:30]} Bd7 {[%emt 0:00:
00]} 23. Ne5 {[%emt 0:00:30]} Be8 {[%emt 0:00:30]} 24. Nd3 {[%emt 0:00:30]} Kf8
{[%emt 0:00:30]} 25. Nc5 {[%emt 0:00:30]} a5 {[%emt 0:00:30]} 26. Nb3 {[%emt 0:
00:00]} a4 {[%emt 0:00:30]} 27. Nd4 {[%emt 0:00:30]} b4 {[%emt 0:00:30]} 28. e3
{[%emt 0:00:30]} e5 {[%emt 0:00:30]} 29. Nc2 {[%emt 0:00:30]} b3 {[%emt 0:00:
00]} 30. axb3 {[%emt 0:00:30]} axb3 {[%emt 0:00:30]} 31. Nb4 {[%emt 0:00:30]}
Nd7 {[%emt 0:00:30]} 32. Nd3 {[%emt 0:00:30]} f6 {[%emt 0:00:30]} 33. Nxe8 {
[%emt 0:00:30]} Kxe8 {[%emt 0:00:30]} 34. Bd5 {[%emt 0:00:30]} Ke7 {[%emt 0:00:
00]} 35. f3 {[%emt 0:00:30]} Kd6 {[%emt 0:00:30]} 36. Bxb3 {[%emt 0:00:30]} e4
{[%emt 0:00:30]} 37. fxe4 {[%emt 0:00:30]} Nc6 {[%emt 0:00:30]} 38. Bg8 {
[%emt 0:00:30]} Ne7 {[%emt 0:00:30]} 39. Bxh7 {[%emt 0:00:30]} g6 {[%emt 0:00:
00]} 40. Nf4 {[%emt 0:00:30]} Nf8 {[%emt 0:00:30]} 41. Bxg6 {[%emt 0:30:30]}
Nexg6 {[%emt 0:30:30]} 42. Nxg6 {[%emt 0:00:30]} Nxg6 {[%emt 0:00:30]} 43. h4 {
[%emt 0:00:30]} Ke5 {[%emt 0:00:30]} 44. h5 {[%emt 0:00:30]} Nf8 {[%emt 0:00:
00]} 45. b4 {[%emt 0:00:30]} Kxe4 {[%emt 0:00:30]} 46. b5 {[%emt 0:00:30]} Kf5
{[%emt 0:00:30]} 47. b6 {[%emt 0:00:30]} Kg5 {[%emt 0:00:30]} 48. b7 {[%emt 0:
00:00]} Nd7 {[%emt 0:00:30]} 49. g4 {[%emt 0:00:30]} f5 {[%emt 0:00:30]} 50. e4
{[%emt 0:00:30]} fxe4 {[%emt 0:00:30]} 51. Kf2 {[%emt 0:00:30]} Kh6 {[%emt 0:
00:00]} 52. Ke2 {[%emt 0:00:30]} Kg5 {[%emt 0:00:30]} 53. Ke3 {[%emt 0:00:30]}
Kh6 {[%emt 0:00:30]} 54. Kf4 {[%emt 0:00:30]} Kh7 {[%emt 0:00:30]} 55. Kxe4 {
[%emt 0:00:30]} 1/2-1/2

[Event "44th Chess Olympiad Open 2022"]
[Site "Chennai"]
[Date "2022.07.31"]
[Round "3.17"]
[White "Panjwani, Raja"]
[Black "Hracek, Zbynek"]
[Result "1/2-1/2"]
[WhiteElo "2450"]
[BlackElo "2555"]
[Annotator "RC"]
[PlyCount "63"]
[EventDate "2022.??.??"]
[TimeControl "60"]

1. d4 {[%emt 0:00:04]} Nf6 {[%emt 0:00:06]} 2. c4 {[%emt 0:00:20]} e6 {[%emt 0:
00:00]} 3. g3 {[%emt 0:00:08]} Bb4+ {[%emt 0:00:20]} 4. Bd2 {[%emt 0:00:06]}
Bxd2+ {[%emt 0:00:17]} 5. Qxd2 {[%emt 0:00:19]} d5 {[%emt 0:00:10]} 6. Bg2 {
[%emt 0:03:24]} O-O {[%emt 0:00:11]} 7. Nf3 {[%emt 0:00:22]} c6 {[%emt 0:00:14]
} 8. O-O {[%emt 0:00:41]} b6 {[%emt 0:00:19]} 9. Rc1 {[%emt 0:02:57]} Nbd7 {
[%emt 0:10:30]} 10. b4 {[%emt 0:16:48]} Bb7 {[%emt 0:04:57]} 11. Na3 {[%emt 0:
00:00]} Qe7 {[%emt 0:06:40]} 12. Qb2 {[%emt 0:00:19]} a5 {[%emt 0:12:41]} 13.
b5 {[%emt 0:03:54]} c5 {[%emt 0:00:07]} 14. dxc5 {[%emt 0:04:39]} Nxc5 {
[%emt 0:03:28]} 15. cxd5 {[%emt 0:02:12]} exd5 {[%emt 0:01:06]} 16. Qe5 {
[%emt 0:07:24]} Qd7 {[%emt 0:05:18]} 17. Nd4 {[%emt 0:00:30]} Rfe8 {[%emt 0:00:
00]} 18. Qf4 {[%emt 0:00:41]} Nfe4 {[%emt 0:03:37]} 19. Nac2 {[%emt 0:06:05]}
Nc3 {[%emt 0:17:38]} 20. Bf3 {[%emt 0:00:38]} Rac8 {[%emt 0:00:39]} 21. Bg4 {
[%emt 0:11:32]} Ne6 {[%emt 0:00:08]} 22. Nxe6 {[%emt 0:03:08]} fxe6 {[%emt 0:
00:00]} 23. Nd4 {[%emt 0:02:55]} Nxb5 {[%emt 0:01:45]} 24. Nxb5 {[%emt 0:03:01]
} Qxb5 {[%emt 0:01:48]} 25. Rxc8 {[%emt 0:07:30]} Bxc8 {[%emt 0:00:06]} 26. Rc1
{[%emt 0:00:33]} e5 {[%emt 0:04:40]} 27. Qg5 {[%emt 0:00:03]} Bxg4 {[%emt 0:00:
00]} 28. Qxg4 {[%emt 0:00:04]} d4 {[%emt 0:03:16]} 29. Rc7 {[%emt 0:01:15]}
Qb1+ {[%emt 0:02:34]} 30. Kg2 {[%emt 0:00:05]} Qg6 {[%emt 0:04:37]} 31. Qd7 {
[%emt 0:00:09]} h5 {[%emt 0:03:10]} 32. Qd5+ {[%emt 0:04:30]} 1/2-1/2

[Event "44th Chess Olympiad Open 2022"]
[Site "Chennai"]
[Date "2022.07.31"]
[Round "3.17"]
[White "Preotu, Razvan"]
[Black "Zwardon, Vojtech"]
[Result "1-0"]
[WhiteElo "2445"]
[BlackElo "2503"]
[Annotator "RC"]
[PlyCount "87"]
[EventDate "2022.??.??"]
[TimeControl "60"]

1. e4 {[%emt 0:00:05]} c5 {[%emt 0:00:01]} 2. Nf3 {[%emt 0:00:11]} Nc6 {
[%emt 0:00:01]} 3. d4 {[%emt 0:00:16]} cxd4 {[%emt 0:00:02]} 4. Nxd4 {[%emt 0:
00:00]} g6 {[%emt 0:00:02]} 5. c4 {[%emt 0:00:22]} Nf6 {[%emt 0:00:01]} 6. Nc3
{[%emt 0:00:20]} d6 {[%emt 0:00:02]} 7. Be2 {[%emt 0:00:20]} Nxd4 {[%emt 0:00:
00]} 8. Qxd4 {[%emt 0:00:09]} Bg7 {[%emt 0:00:02]} 9. O-O {[%emt 0:00:23]} O-O
{[%emt 0:00:32]} 10. Qd3 {[%emt 0:00:06]} Nd7 {[%emt 0:05:42]} 11. Be3 {
[%emt 0:00:43]} Nc5 {[%emt 0:07:18]} 12. Qc2 {[%emt 0:00:26]} f5 {[%emt 0:00:
00]} 13. exf5 {[%emt 0:00:23]} Bxf5 {[%emt 0:00:18]} 14. Qd2 {[%emt 0:00:06]}
Ne4 {[%emt 0:27:55]} 15. Nxe4 {[%emt 0:00:49]} Bxe4 {[%emt 0:00:04]} 16. Bg4 {
[%emt 0:06:54]} Qc7 {[%emt 0:05:12]} 17. Be6+ {[%emt 0:21:17]} Kh8 {[%emt 0:00:
00]} 18. Bd4 {[%emt 0:06:04]} Bf5 {[%emt 0:03:58]} 19. Bxg7+ {[%emt 0:09:49]}
Kxg7 {[%emt 0:00:04]} 20. Qd4+ {[%emt 0:00:09]} Rf6 {[%emt 0:00:23]} 21. g4 {
[%emt 0:00:53]} Bxe6 {[%emt 0:00:09]} 22. g5 {[%emt 0:00:06]} Qxc4 {[%emt 0:00:
00]} 23. gxf6+ {[%emt 0:00:10]} exf6 {[%emt 0:00:04]} 24. Qxc4 {[%emt 0:09:42]}
Bxc4 {[%emt 0:00:17]} 25. Rfe1 {[%emt 0:00:16]} Kf8 {[%emt 0:03:39]} 26. Rac1 {
[%emt 0:03:57]} Bxa2 {[%emt 0:06:01]} 27. Rc7 {[%emt 0:00:14]} Bd5 {[%emt 0:00:
00]} 28. Rd1 {[%emt 0:00:51]} Bc6 {[%emt 0:02:47]} 29. Rxd6 {[%emt 0:00:54]}
Re8 {[%emt 0:00:52]} 30. Rxf6+ {[%emt 0:00:44]} Kg8 {[%emt 0:00:09]} 31. Kf1 {
[%emt 0:13:54]} Rd8 {[%emt 0:01:59]} 32. Rff7 {[%emt 0:03:43]} Rd1+ {[%emt 0:
00:00]} 33. Ke2 {[%emt 0:00:05]} Rb1 {[%emt 0:00:05]} 34. Rg7+ {[%emt 0:00:10]}
Kf8 {[%emt 0:00:09]} 35. Rxh7 {[%emt 0:00:14]} Rxb2+ {[%emt 0:00:03]} 36. Ke3 {
[%emt 0:00:31]} Kg8 {[%emt 0:01:03]} 37. Rhg7+ {[%emt 0:09:38]} Kf8 {[%emt 0:
00:00]} 38. Rxg6 {[%emt 0:00:23]} Rb3+ {[%emt 0:10:09]} 39. Kd4 {[%emt 0:00:19]
} a5 {[%emt 0:00:39]} 40. Rh6 {[%emt 0:02:03]} Kg8 {[%emt 0:01:09]} 41. Rd6 {
[%emt 0:31:59]} Rb4+ {[%emt 0:30:47]} 42. Kc3 {[%emt 0:02:31]} Kf8 {[%emt 0:00:
00]} 43. Rd8+ {[%emt 0:00:18]} Be8 {[%emt 0:00:04]} 44. Rh7 {[%emt 0:00:14]}
1-0